{"text_format":"1","workbook":"xlsx","n_sheets":2,"sheets":["Hazardous Substances Register","Worksheet"],"not_rendered":{"charts":0,"images":1,"macros":1,"external_links":0,"defined_names":4,"comments":0,"pivot_tables":0},"unopened":[],"bounds":{"document_bytes":16777216,"sheet_cells":100000,"rows_first":2000,"rows_last":500,"rows_between":2000,"halvings":0,"cell_chars":16384,"cell_head_chars":4096},"cells_cut":0,"cells_raw":0,"read":"whole","date_system":"1900"}

{"sheet":"Hazardous Substances Register","index":0,"n_rows":22,"n_cols":19,"rows_kept":22,"cut":false,"hidden":false,"merged":[[21,11,21,12],[21,13,21,14],[5,1,6,1],[5,4,6,4],[16,11,16,12],[16,13,16,14],[17,11,17,12],[17,13,17,14],[18,11,18,12],[18,13,18,14],[19,11,19,12],[19,13,19,14],[20,11,20,12],[20,13,20,14],[11,11,11,12],[15,11,15,12],[15,13,15,14],[7,11,7,12],[7,13,7,14],[10,11,10,12],[10,13,10,14],[12,11,12,12],[12,13,12,14],[13,11,13,12],[13,13,13,14],[14,11,14,12],[11,13,11,14],[14,13,14,14],[5,13,6,14],[8,11,8,12],[8,13,8,14],[9,11,9,12],[9,13,9,14],[5,0,6,0],[5,2,6,2],[5,7,6,7],[5,18,6,18],[0,8,0,9],[0,10,0,12],[1,8,1,9],[1,10,1,12],[2,13,2,14],[5,15,6,15],[5,11,6,12],[2,10,2,11],[5,9,6,9],[5,10,6,10],[5,16,5,17],[5,8,6,8],[0,5,0,6],[5,3,6,3],[5,5,6,5],[5,6,6,6],[1,3,1,5],[2,6,2,8],[1,6,1,7],[2,3,2,5]]}
[null,null,null,"Date:",null,{"$f":"TODAY()","v":"2021-09-22"},null,null,"Document ID:",null,{"$f":"IF(G2=\"\",\"\",IFERROR($G$2&\"-\"&INDEX(Base_Codes,MATCH(G3,bases,0),2)&\"-\"&O2&\"-HSR-\"&TEXT($F$1,\"yy\")&TEXT($F$1,\"mm\")&TEXT($F$1,\"dd\")&\"-v\"&O1,\"\"))","v":""},null,null,"Version #:",1]
[null,null,null,"PVID:",null,null,null,null,"Contractor/Company:",null,null,null,null,"Contractor ID:"]
[null,null,null,"Camp/Base:",null,null,null,null,null,"Location:",null,null,"Site:"]
[]
[]
["Material / Substance","Gas/ Solid/ Liquid","Container Type"," Unit of measure"," Continer size","Maximum No. Containers","Total Units","Hazard Class","UN Number","Req'd PPE/ RPE","Specific location on camp/ base","Special transport requirements",null,"SDS - (current within 5 years) hyperlink/ location",null,"Segregation requirements","Spill kit ",null,"ERP Available\n(Y/N)"]
[null,null,null,null,null,null,null,null,null,null,null,null,null,null,null,null,"Type?","Available?\n(Y/N)"]
[null,null,null,null,null,null,{"$f":"IF(A8=\"\",\"\",E8*F8&D8)","v":""}]
[null,null,null,null,null,null,{"$f":"IF(A9=\"\",\"\",E9*F9&D9)","v":""}]
[null,null,null,null,null,null,""]
[null,null,null,null,null,null,""]
[null,null,null,null,null,null,""]
[null,null,null,null,null,null,""]
[null,null,null,null,null,null,""]
[null,null,null,null,null,null,""]
[null,null,null,null,null,null,""]
[null,null,null,null,null,null,""]
[null,null,null,null,null,null,""]
[null,null,null,null,null,null,""]
[null,null,null,null,null,null,""]
[null,null,null,null,null,null,""]
[null,null,null,null,null,null,""]

{"sheet":"Worksheet","index":1,"n_rows":200,"n_cols":8,"rows_kept":200,"cut":false,"hidden":false,"merged":[[0,0,0,1]]}
["Camp/Base abbreviation menu",null,"Y/N",null,null,null,"Last row","Lines"]
["Camp Base","Abbreviation","Y ",null,null,null,{"$f":"IF(AND('Hazardous Substances Register'!A1<>\"\",'Hazardous Substances Register'!A1<>\"Material Name\"),ROW()-1,\"\")","v":""},{"$f":"MAX(G2:G101)","v":6}]
[null,null,"N",null,null,null,{"$f":"IF(AND('Hazardous Substances Register'!A2<>\"\",'Hazardous Substances Register'!A2<>\"Material Name\"),ROW()-1,\"\")","v":""},"Pages"]
["Arch Hill","ARH",null,null,null,null,{"$f":"IF(AND('Hazardous Substances Register'!A3<>\"\",'Hazardous Substances Register'!A3<>\"Material Name\"),ROW()-1,\"\")","v":""},{"$f":"INT((MAX(G2:G101)/20)+1)","v":1}]
["Ardmore","ARD",null,null,null,null,{"$f":"IF(AND('Hazardous Substances Register'!A4<>\"\",'Hazardous Substances Register'!A4<>\"Material Name\"),ROW()-1,\"\")","v":""}]
["Auckland","AKL",null,null,null,null,{"$f":"IF(AND('Hazardous Substances Register'!A5<>\"\",'Hazardous Substances Register'!A5<>\"Material Name\"),ROW()-1,\"\")","v":""}]
["Bulls","BUL",null,null,null,null,{"$f":"IF(AND('Hazardous Substances Register'!A6<>\"\",'Hazardous Substances Register'!A6<>\"Material Name\"),ROW()-1,\"\")","v":6}]
["Burnham","BHM",null,null,null,null,{"$f":"IF(AND('Hazardous Substances Register'!A7<>\"\",'Hazardous Substances Register'!A7<>\"Material Name\"),ROW()-1,\"\")","v":""}]
["Christchurch","CHC",null,null,null,null,{"$f":"IF(AND('Hazardous Substances Register'!A8<>\"\",'Hazardous Substances Register'!A8<>\"Material Name\"),ROW()-1,\"\")","v":""}]
["Cook Islands","COK",null,null,null,null,{"$f":"IF(AND('Hazardous Substances Register'!A9<>\"\",'Hazardous Substances Register'!A9<>\"Material Name\"),ROW()-1,\"\")","v":""}]
["Devonport","DPT",null,null,null,null,{"$f":"IF(AND('Hazardous Substances Register'!A10<>\"\",'Hazardous Substances Register'!A10<>\"Material Name\"),ROW()-1,\"\")","v":""}]
["Dip Flat","DIP",null,null,null,null,{"$f":"IF(AND('Hazardous Substances Register'!A11<>\"\",'Hazardous Substances Register'!A11<>\"Material Name\"),ROW()-1,\"\")","v":""}]
["Dunedin","DUN",null,null,null,null,{"$f":"IF(AND('Hazardous Substances Register'!A12<>\"\",'Hazardous Substances Register'!A12<>\"Material Name\"),ROW()-1,\"\")","v":""}]
["Gisborne","GIS",null,null,null,null,{"$f":"IF(AND('Hazardous Substances Register'!A13<>\"\",'Hazardous Substances Register'!A13<>\"Material Name\"),ROW()-1,\"\")","v":""}]
["Glentunnel","GTN",null,null,null,null,{"$f":"IF(AND('Hazardous Substances Register'!A14<>\"\",'Hazardous Substances Register'!A14<>\"Material Name\"),ROW()-1,\"\")","v":""}]
["Great Barrier Island","GBI",null,null,null,null,{"$f":"IF(AND('Hazardous Substances Register'!A15<>\"\",'Hazardous Substances Register'!A15<>\"Material Name\"),ROW()-1,\"\")","v":""}]
["Greymouth","GRM",null,null,null,null,{"$f":"IF(AND('Hazardous Substances Register'!A16<>\"\",'Hazardous Substances Register'!A16<>\"Material Name\"),ROW()-1,\"\")","v":""}]
["Hamilton","HAM",null,null,null,null,{"$f":"IF(AND('Hazardous Substances Register'!A17<>\"\",'Hazardous Substances Register'!A17<>\"Material Name\"),ROW()-1,\"\")","v":""}]
["Hastings","HAS",null,null,null,null,{"$f":"IF(AND('Hazardous Substances Register'!A18<>\"\",'Hazardous Substances Register'!A18<>\"Material Name\"),ROW()-1,\"\")","v":""}]
["HMNZS Olphert","OLP",null,null,null,null,{"$f":"IF(AND('Hazardous Substances Register'!A19<>\"\",'Hazardous Substances Register'!A19<>\"Material Name\"),ROW()-1,\"\")","v":""}]
["Hobsonville","HOB",null,null,null,null,{"$f":"IF(AND('Hazardous Substances Register'!A20<>\"\",'Hazardous Substances Register'!A20<>\"Material Name\"),ROW()-1,\"\")","v":""}]
["Invercargill","INV",null,null,null,null,{"$f":"IF(AND('Hazardous Substances Register'!A21<>\"\",'Hazardous Substances Register'!A21<>\"Material Name\"),ROW()-1,\"\")","v":""}]
["Irirangi","IRI",null,null,null,null,{"$f":"IF(AND('Hazardous Substances Register'!A22<>\"\",'Hazardous Substances Register'!A22<>\"Material Name\"),ROW()-1,\"\")","v":""}]
["Kaipara","KAI",null,null,null,null,{"$f":"IF(AND('Hazardous Substances Register'!A23<>\"\",'Hazardous Substances Register'!A23<>\"Material Name\"),ROW()-1,\"\")","v":""}]
["Kauri Point","KPT",null,null,null,null,{"$f":"IF(AND('Hazardous Substances Register'!A24<>\"\",'Hazardous Substances Register'!A24<>\"Material Name\"),ROW()-1,\"\")","v":""}]
["Kensington Army Hall (Dunedin City)","KAH",null,null,null,null,{"$f":"IF(AND('Hazardous Substances Register'!A25<>\"\",'Hazardous Substances Register'!A25<>\"Material Name\"),ROW()-1,\"\")","v":""}]
["Landguard Bluff","LAN",null,null,null,null,{"$f":"IF(AND('Hazardous Substances Register'!A26<>\"\",'Hazardous Substances Register'!A26<>\"Material Name\"),ROW()-1,\"\")","v":""}]
["Linton","LIN",null,null,null,null,{"$f":"IF(AND('Hazardous Substances Register'!A27<>\"\",'Hazardous Substances Register'!A27<>\"Material Name\"),ROW()-1,\"\")","v":""}]
["MakoMako","MAK",null,null,null,null,{"$f":"IF(AND('Hazardous Substances Register'!A28<>\"\",'Hazardous Substances Register'!A28<>\"Material Name\"),ROW()-1,\"\")","v":""}]
["Mangaroa","MGA",null,null,null,null,{"$f":"IF(AND('Hazardous Substances Register'!A29<>\"\",'Hazardous Substances Register'!A29<>\"Material Name\"),ROW()-1,\"\")","v":""}]
["Manukau","MAN",null,null,null,null,{"$f":"IF(AND('Hazardous Substances Register'!A30<>\"\",'Hazardous Substances Register'!A30<>\"Material Name\"),ROW()-1,\"\")","v":""}]
["Mt Maunganui","MTM",null,null,null,null,{"$f":"IF(AND('Hazardous Substances Register'!A31<>\"\",'Hazardous Substances Register'!A31<>\"Material Name\"),ROW()-1,\"\")","v":""}]
["Napier","NPN",null,null,null,null,{"$f":"IF(AND('Hazardous Substances Register'!A32<>\"\",'Hazardous Substances Register'!A32<>\"Material Name\"),ROW()-1,\"\")","v":""}]
["Narrow Neck","NNK",null,null,null,null,{"$f":"IF(AND('Hazardous Substances Register'!A33<>\"\",'Hazardous Substances Register'!A33<>\"Material Name\"),ROW()-1,\"\")","v":""}]
["Nelson","NSN",null,null,null,null,{"$f":"IF(AND('Hazardous Substances Register'!A34<>\"\",'Hazardous Substances Register'!A34<>\"Material Name\"),ROW()-1,\"\")","v":""}]
["New Plymouth","NPH",null,null,null,null,{"$f":"IF(AND('Hazardous Substances Register'!A35<>\"\",'Hazardous Substances Register'!A35<>\"Material Name\"),ROW()-1,\"\")","v":""}]
["Ngataringa Bay","NGA",null,null,null,null,{"$f":"IF(AND('Hazardous Substances Register'!A36<>\"\",'Hazardous Substances Register'!A36<>\"Material Name\"),ROW()-1,\"\")","v":""}]
["North Shore","NSH",null,null,null,null,{"$f":"IF(AND('Hazardous Substances Register'!A37<>\"\",'Hazardous Substances Register'!A37<>\"Material Name\"),ROW()-1,\"\")","v":""}]
["Oamaru","OAM",null,null,null,null,{"$f":"IF(AND('Hazardous Substances Register'!A38<>\"\",'Hazardous Substances Register'!A38<>\"Material Name\"),ROW()-1,\"\")","v":""}]
["Ohakea","OHA",null,null,null,null,{"$f":"IF(AND('Hazardous Substances Register'!A39<>\"\",'Hazardous Substances Register'!A39<>\"Material Name\"),ROW()-1,\"\")","v":""}]
["Palmerston North","PNH",null,null,null,null,{"$f":"IF(AND('Hazardous Substances Register'!A40<>\"\",'Hazardous Substances Register'!A40<>\"Material Name\"),ROW()-1,\"\")","v":""}]
["Papakura","PAP",null,null,null,null,{"$f":"IF(AND('Hazardous Substances Register'!A41<>\"\",'Hazardous Substances Register'!A41<>\"Material Name\"),ROW()-1,\"\")","v":""}]
["Pegasus Facility (Christchurch City)","PEG",null,null,null,null,{"$f":"IF(AND('Hazardous Substances Register'!A42<>\"\",'Hazardous Substances Register'!A42<>\"Material Name\"),ROW()-1,\"\")","v":""}]
["Raumai","RAU",null,null,null,null,{"$f":"IF(AND('Hazardous Substances Register'!A43<>\"\",'Hazardous Substances Register'!A43<>\"Material Name\"),ROW()-1,\"\")","v":""}]
["Rotorua","ROT",null,null,null,null,{"$f":"IF(AND('Hazardous Substances Register'!A44<>\"\",'Hazardous Substances Register'!A44<>\"Material Name\"),ROW()-1,\"\")","v":""}]
["Roys Rifle","ROY",null,null,null,null,{"$f":"IF(AND('Hazardous Substances Register'!A45<>\"\",'Hazardous Substances Register'!A45<>\"Material Name\"),ROW()-1,\"\")","v":""}]
["Singapore","SIN",null,null,null,null,{"$f":"IF(AND('Hazardous Substances Register'!A46<>\"\",'Hazardous Substances Register'!A46<>\"Material Name\"),ROW()-1,\"\")","v":""}]
["Tauranga","TGA",null,null,null,null,{"$f":"IF(AND('Hazardous Substances Register'!A47<>\"\",'Hazardous Substances Register'!A47<>\"Material Name\"),ROW()-1,\"\")","v":""}]
["Tekapo","TEK",null,null,null,null,{"$f":"IF(AND('Hazardous Substances Register'!A48<>\"\",'Hazardous Substances Register'!A48<>\"Material Name\"),ROW()-1,\"\")","v":""}]
["Timaru","TIM",null,null,null,null,{"$f":"IF(AND('Hazardous Substances Register'!A49<>\"\",'Hazardous Substances Register'!A49<>\"Material Name\"),ROW()-1,\"\")","v":""}]
["Toroa Facility (Dunedin City)","TOR",null,null,null,null,{"$f":"IF(AND('Hazardous Substances Register'!A50<>\"\",'Hazardous Substances Register'!A50<>\"Material Name\"),ROW()-1,\"\")","v":""}]
["Torpedo Bay","TOP",null,null,null,null,{"$f":"IF(AND('Hazardous Substances Register'!A51<>\"\",'Hazardous Substances Register'!A51<>\"Material Name\"),ROW()-1,\"\")","v":""}]
["Trentham","TRN",null,null,null,null,{"$f":"IF(AND('Hazardous Substances Register'!A52<>\"\",'Hazardous Substances Register'!A52<>\"Material Name\"),ROW()-1,\"\")","v":""}]
["Waiouru","WAI",null,null,null,null,{"$f":"IF(AND('Hazardous Substances Register'!A53<>\"\",'Hazardous Substances Register'!A53<>\"Material Name\"),ROW()-1,\"\")","v":""}]
["Waitangi","WTG",null,null,null,null,{"$f":"IF(AND('Hazardous Substances Register'!A54<>\"\",'Hazardous Substances Register'!A54<>\"Material Name\"),ROW()-1,\"\")","v":""}]
["Waitati","WAT",null,null,null,null,{"$f":"IF(AND('Hazardous Substances Register'!A55<>\"\",'Hazardous Substances Register'!A55<>\"Material Name\"),ROW()-1,\"\")","v":""}]
["Weedons","WDN",null,null,null,null,{"$f":"IF(AND('Hazardous Substances Register'!A56<>\"\",'Hazardous Substances Register'!A56<>\"Material Name\"),ROW()-1,\"\")","v":""}]
["Wellington","WLG",null,null,null,null,{"$f":"IF(AND('Hazardous Substances Register'!A57<>\"\",'Hazardous Substances Register'!A57<>\"Material Name\"),ROW()-1,\"\")","v":""}]
["West Melton","WMN",null,null,null,null,{"$f":"IF(AND('Hazardous Substances Register'!A58<>\"\",'Hazardous Substances Register'!A58<>\"Material Name\"),ROW()-1,\"\")","v":""}]
["Whanganui","WAN",null,null,null,null,{"$f":"IF(AND('Hazardous Substances Register'!A59<>\"\",'Hazardous Substances Register'!A59<>\"Material Name\"),ROW()-1,\"\")","v":""}]
["Whangaparaoa","WHA",null,null,null,null,{"$f":"IF(AND('Hazardous Substances Register'!A60<>\"\",'Hazardous Substances Register'!A60<>\"Material Name\"),ROW()-1,\"\")","v":""}]
["Whangarei","WEI",null,null,null,null,{"$f":"IF(AND('Hazardous Substances Register'!A61<>\"\",'Hazardous Substances Register'!A61<>\"Material Name\"),ROW()-1,\"\")","v":""}]
["Whenuapai","WHP",null,null,null,null,{"$f":"IF(AND('Hazardous Substances Register'!A62<>\"\",'Hazardous Substances Register'!A62<>\"Material Name\"),ROW()-1,\"\")","v":""}]
["Wigram","WIG",null,null,null,null,{"$f":"IF(AND('Hazardous Substances Register'!A63<>\"\",'Hazardous Substances Register'!A63<>\"Material Name\"),ROW()-1,\"\")","v":""}]
["Woodbourne","WBN",null,null,null,null,{"$f":"IF(AND('Hazardous Substances Register'!A64<>\"\",'Hazardous Substances Register'!A64<>\"Material Name\"),ROW()-1,\"\")","v":""}]
[null,null,null,null,null,null,{"$f":"IF(AND('Hazardous Substances Register'!A65<>\"\",'Hazardous Substances Register'!A65<>\"Material Name\"),ROW()-1,\"\")","v":""}]
[null,null,null,null,null,null,{"$f":"IF(AND('Hazardous Substances Register'!A66<>\"\",'Hazardous Substances Register'!A66<>\"Material Name\"),ROW()-1,\"\")","v":""}]
[null,null,null,null,null,null,{"$f":"IF(AND('Hazardous Substances Register'!A67<>\"\",'Hazardous Substances Register'!A67<>\"Material Name\"),ROW()-1,\"\")","v":""}]
[null,null,null,null,null,null,{"$f":"IF(AND('Hazardous Substances Register'!A68<>\"\",'Hazardous Substances Register'!A68<>\"Material Name\"),ROW()-1,\"\")","v":""}]
[null,null,null,null,null,null,{"$f":"IF(AND('Hazardous Substances Register'!A69<>\"\",'Hazardous Substances Register'!A69<>\"Material Name\"),ROW()-1,\"\")","v":""}]
[null,null,null,null,null,null,{"$f":"IF(AND('Hazardous Substances Register'!A70<>\"\",'Hazardous Substances Register'!A70<>\"Material Name\"),ROW()-1,\"\")","v":""}]
[null,null,null,null,null,null,{"$f":"IF(AND('Hazardous Substances Register'!A71<>\"\",'Hazardous Substances Register'!A71<>\"Material Name\"),ROW()-1,\"\")","v":""}]
[null,null,null,null,null,null,{"$f":"IF(AND('Hazardous Substances Register'!A72<>\"\",'Hazardous Substances Register'!A72<>\"Material Name\"),ROW()-1,\"\")","v":""}]
[null,null,null,null,null,null,{"$f":"IF(AND('Hazardous Substances Register'!A73<>\"\",'Hazardous Substances Register'!A73<>\"Material Name\"),ROW()-1,\"\")","v":""}]
[null,null,null,null,null,null,{"$f":"IF(AND('Hazardous Substances Register'!A74<>\"\",'Hazardous Substances Register'!A74<>\"Material Name\"),ROW()-1,\"\")","v":""}]
[null,null,null,null,null,null,{"$f":"IF(AND('Hazardous Substances Register'!A75<>\"\",'Hazardous Substances Register'!A75<>\"Material Name\"),ROW()-1,\"\")","v":""}]
[null,null,null,null,null,null,{"$f":"IF(AND('Hazardous Substances Register'!A76<>\"\",'Hazardous Substances Register'!A76<>\"Material Name\"),ROW()-1,\"\")","v":""}]
[null,null,null,null,null,null,{"$f":"IF(AND('Hazardous Substances Register'!A77<>\"\",'Hazardous Substances Register'!A77<>\"Material Name\"),ROW()-1,\"\")","v":""}]
[null,null,null,null,null,null,{"$f":"IF(AND('Hazardous Substances Register'!A78<>\"\",'Hazardous Substances Register'!A78<>\"Material Name\"),ROW()-1,\"\")","v":""}]
[null,null,null,null,null,null,{"$f":"IF(AND('Hazardous Substances Register'!A79<>\"\",'Hazardous Substances Register'!A79<>\"Material Name\"),ROW()-1,\"\")","v":""}]
[null,null,null,null,null,null,{"$f":"IF(AND('Hazardous Substances Register'!A80<>\"\",'Hazardous Substances Register'!A80<>\"Material Name\"),ROW()-1,\"\")","v":""}]
[null,null,null,null,null,null,{"$f":"IF(AND('Hazardous Substances Register'!A81<>\"\",'Hazardous Substances Register'!A81<>\"Material Name\"),ROW()-1,\"\")","v":""}]
[null,null,null,null,null,null,{"$f":"IF(AND('Hazardous Substances Register'!A82<>\"\",'Hazardous Substances Register'!A82<>\"Material Name\"),ROW()-1,\"\")","v":""}]
[null,null,null,null,null,null,{"$f":"IF(AND('Hazardous Substances Register'!A83<>\"\",'Hazardous Substances Register'!A83<>\"Material Name\"),ROW()-1,\"\")","v":""}]
[null,null,null,null,null,null,{"$f":"IF(AND('Hazardous Substances Register'!A84<>\"\",'Hazardous Substances Register'!A84<>\"Material Name\"),ROW()-1,\"\")","v":""}]
[null,null,null,null,null,null,{"$f":"IF(AND('Hazardous Substances Register'!A85<>\"\",'Hazardous Substances Register'!A85<>\"Material Name\"),ROW()-1,\"\")","v":""}]
[null,null,null,null,null,null,{"$f":"IF(AND('Hazardous Substances Register'!A86<>\"\",'Hazardous Substances Register'!A86<>\"Material Name\"),ROW()-1,\"\")","v":""}]
[null,null,null,null,null,null,{"$f":"IF(AND('Hazardous Substances Register'!A87<>\"\",'Hazardous Substances Register'!A87<>\"Material Name\"),ROW()-1,\"\")","v":""}]
[null,null,null,null,null,null,{"$f":"IF(AND('Hazardous Substances Register'!A88<>\"\",'Hazardous Substances Register'!A88<>\"Material Name\"),ROW()-1,\"\")","v":""}]
[null,null,null,null,null,null,{"$f":"IF(AND('Hazardous Substances Register'!A89<>\"\",'Hazardous Substances Register'!A89<>\"Material Name\"),ROW()-1,\"\")","v":""}]
[null,null,null,null,null,null,{"$f":"IF(AND('Hazardous Substances Register'!A90<>\"\",'Hazardous Substances Register'!A90<>\"Material Name\"),ROW()-1,\"\")","v":""}]
[null,null,null,null,null,null,{"$f":"IF(AND('Hazardous Substances Register'!A91<>\"\",'Hazardous Substances Register'!A91<>\"Material Name\"),ROW()-1,\"\")","v":""}]
[null,null,null,null,null,null,{"$f":"IF(AND('Hazardous Substances Register'!A92<>\"\",'Hazardous Substances Register'!A92<>\"Material Name\"),ROW()-1,\"\")","v":""}]
[null,null,null,null,null,null,{"$f":"IF(AND('Hazardous Substances Register'!A93<>\"\",'Hazardous Substances Register'!A93<>\"Material Name\"),ROW()-1,\"\")","v":""}]
[null,null,null,null,null,null,{"$f":"IF(AND('Hazardous Substances Register'!A94<>\"\",'Hazardous Substances Register'!A94<>\"Material Name\"),ROW()-1,\"\")","v":""}]
[null,null,null,null,null,null,{"$f":"IF(AND('Hazardous Substances Register'!A95<>\"\",'Hazardous Substances Register'!A95<>\"Material Name\"),ROW()-1,\"\")","v":""}]
[null,null,null,null,null,null,{"$f":"IF(AND('Hazardous Substances Register'!A96<>\"\",'Hazardous Substances Register'!A96<>\"Material Name\"),ROW()-1,\"\")","v":""}]
[null,null,null,null,null,null,{"$f":"IF(AND('Hazardous Substances Register'!A97<>\"\",'Hazardous Substances Register'!A97<>\"Material Name\"),ROW()-1,\"\")","v":""}]
[null,null,null,null,null,null,{"$f":"IF(AND('Hazardous Substances Register'!A98<>\"\",'Hazardous Substances Register'!A98<>\"Material Name\"),ROW()-1,\"\")","v":""}]
[null,null,null,null,null,null,{"$f":"IF(AND('Hazardous Substances Register'!A99<>\"\",'Hazardous Substances Register'!A99<>\"Material Name\"),ROW()-1,\"\")","v":""}]
[null,null,null,null,null,null,{"$f":"IF(AND('Hazardous Substances Register'!A100<>\"\",'Hazardous Substances Register'!A100<>\"Material Name\"),ROW()-1,\"\")","v":""}]
[null,null,null,null,null,null,{"$f":"IF(AND('Hazardous Substances Register'!A101<>\"\",'Hazardous Substances Register'!A101<>\"Material Name\"),ROW()-1,\"\")","v":""}]
[null,null,null,null,null,null,{"$f":"IF(AND('Hazardous Substances Register'!A102<>\"\",'Hazardous Substances Register'!A102<>\"Material Name\"),ROW()-1,\"\")","v":""}]
[null,null,null,null,null,null,{"$f":"IF(AND('Hazardous Substances Register'!A103<>\"\",'Hazardous Substances Register'!A103<>\"Material Name\"),ROW()-1,\"\")","v":""}]
[null,null,null,null,null,null,{"$f":"IF(AND('Hazardous Substances Register'!A104<>\"\",'Hazardous Substances Register'!A104<>\"Material Name\"),ROW()-1,\"\")","v":""}]
[null,null,null,null,null,null,{"$f":"IF(AND('Hazardous Substances Register'!A105<>\"\",'Hazardous Substances Register'!A105<>\"Material Name\"),ROW()-1,\"\")","v":""}]
[null,null,null,null,null,null,{"$f":"IF(AND('Hazardous Substances Register'!A106<>\"\",'Hazardous Substances Register'!A106<>\"Material Name\"),ROW()-1,\"\")","v":""}]
[null,null,null,null,null,null,{"$f":"IF(AND('Hazardous Substances Register'!A107<>\"\",'Hazardous Substances Register'!A107<>\"Material Name\"),ROW()-1,\"\")","v":""}]
[null,null,null,null,null,null,{"$f":"IF(AND('Hazardous Substances Register'!A108<>\"\",'Hazardous Substances Register'!A108<>\"Material Name\"),ROW()-1,\"\")","v":""}]
[null,null,null,null,null,null,{"$f":"IF(AND('Hazardous Substances Register'!A109<>\"\",'Hazardous Substances Register'!A109<>\"Material Name\"),ROW()-1,\"\")","v":""}]
[null,null,null,null,null,null,{"$f":"IF(AND('Hazardous Substances Register'!A110<>\"\",'Hazardous Substances Register'!A110<>\"Material Name\"),ROW()-1,\"\")","v":""}]
[null,null,null,null,null,null,{"$f":"IF(AND('Hazardous Substances Register'!A111<>\"\",'Hazardous Substances Register'!A111<>\"Material Name\"),ROW()-1,\"\")","v":""}]
[null,null,null,null,null,null,{"$f":"IF(AND('Hazardous Substances Register'!A112<>\"\",'Hazardous Substances Register'!A112<>\"Material Name\"),ROW()-1,\"\")","v":""}]
[null,null,null,null,null,null,{"$f":"IF(AND('Hazardous Substances Register'!A113<>\"\",'Hazardous Substances Register'!A113<>\"Material Name\"),ROW()-1,\"\")","v":""}]
[null,null,null,null,null,null,{"$f":"IF(AND('Hazardous Substances Register'!A114<>\"\",'Hazardous Substances Register'!A114<>\"Material Name\"),ROW()-1,\"\")","v":""}]
[null,null,null,null,null,null,{"$f":"IF(AND('Hazardous Substances Register'!A115<>\"\",'Hazardous Substances Register'!A115<>\"Material Name\"),ROW()-1,\"\")","v":""}]
[null,null,null,null,null,null,{"$f":"IF(AND('Hazardous Substances Register'!A116<>\"\",'Hazardous Substances Register'!A116<>\"Material Name\"),ROW()-1,\"\")","v":""}]
[null,null,null,null,null,null,{"$f":"IF(AND('Hazardous Substances Register'!A117<>\"\",'Hazardous Substances Register'!A117<>\"Material Name\"),ROW()-1,\"\")","v":""}]
[null,null,null,null,null,null,{"$f":"IF(AND('Hazardous Substances Register'!A118<>\"\",'Hazardous Substances Register'!A118<>\"Material Name\"),ROW()-1,\"\")","v":""}]
[null,null,null,null,null,null,{"$f":"IF(AND('Hazardous Substances Register'!A119<>\"\",'Hazardous Substances Register'!A119<>\"Material Name\"),ROW()-1,\"\")","v":""}]
[null,null,null,null,null,null,{"$f":"IF(AND('Hazardous Substances Register'!A120<>\"\",'Hazardous Substances Register'!A120<>\"Material Name\"),ROW()-1,\"\")","v":""}]
[null,null,null,null,null,null,{"$f":"IF(AND('Hazardous Substances Register'!A121<>\"\",'Hazardous Substances Register'!A121<>\"Material Name\"),ROW()-1,\"\")","v":""}]
[null,null,null,null,null,null,{"$f":"IF(AND('Hazardous Substances Register'!A122<>\"\",'Hazardous Substances Register'!A122<>\"Material Name\"),ROW()-1,\"\")","v":""}]
[null,null,null,null,null,null,{"$f":"IF(AND('Hazardous Substances Register'!A123<>\"\",'Hazardous Substances Register'!A123<>\"Material Name\"),ROW()-1,\"\")","v":""}]
[null,null,null,null,null,null,{"$f":"IF(AND('Hazardous Substances Register'!A124<>\"\",'Hazardous Substances Register'!A124<>\"Material Name\"),ROW()-1,\"\")","v":""}]
[null,null,null,null,null,null,{"$f":"IF(AND('Hazardous Substances Register'!A125<>\"\",'Hazardous Substances Register'!A125<>\"Material Name\"),ROW()-1,\"\")","v":""}]
[null,null,null,null,null,null,{"$f":"IF(AND('Hazardous Substances Register'!A126<>\"\",'Hazardous Substances Register'!A126<>\"Material Name\"),ROW()-1,\"\")","v":""}]
[null,null,null,null,null,null,{"$f":"IF(AND('Hazardous Substances Register'!A127<>\"\",'Hazardous Substances Register'!A127<>\"Material Name\"),ROW()-1,\"\")","v":""}]
[null,null,null,null,null,null,{"$f":"IF(AND('Hazardous Substances Register'!A128<>\"\",'Hazardous Substances Register'!A128<>\"Material Name\"),ROW()-1,\"\")","v":""}]
[null,null,null,null,null,null,{"$f":"IF(AND('Hazardous Substances Register'!A129<>\"\",'Hazardous Substances Register'!A129<>\"Material Name\"),ROW()-1,\"\")","v":""}]
[null,null,null,null,null,null,{"$f":"IF(AND('Hazardous Substances Register'!A130<>\"\",'Hazardous Substances Register'!A130<>\"Material Name\"),ROW()-1,\"\")","v":""}]
[null,null,null,null,null,null,{"$f":"IF(AND('Hazardous Substances Register'!A131<>\"\",'Hazardous Substances Register'!A131<>\"Material Name\"),ROW()-1,\"\")","v":""}]
[null,null,null,null,null,null,{"$f":"IF(AND('Hazardous Substances Register'!A132<>\"\",'Hazardous Substances Register'!A132<>\"Material Name\"),ROW()-1,\"\")","v":""}]
[null,null,null,null,null,null,{"$f":"IF(AND('Hazardous Substances Register'!A133<>\"\",'Hazardous Substances Register'!A133<>\"Material Name\"),ROW()-1,\"\")","v":""}]
[null,null,null,null,null,null,{"$f":"IF(AND('Hazardous Substances Register'!A134<>\"\",'Hazardous Substances Register'!A134<>\"Material Name\"),ROW()-1,\"\")","v":""}]
[null,null,null,null,null,null,{"$f":"IF(AND('Hazardous Substances Register'!A135<>\"\",'Hazardous Substances Register'!A135<>\"Material Name\"),ROW()-1,\"\")","v":""}]
[null,null,null,null,null,null,{"$f":"IF(AND('Hazardous Substances Register'!A136<>\"\",'Hazardous Substances Register'!A136<>\"Material Name\"),ROW()-1,\"\")","v":""}]
[null,null,null,null,null,null,{"$f":"IF(AND('Hazardous Substances Register'!A137<>\"\",'Hazardous Substances Register'!A137<>\"Material Name\"),ROW()-1,\"\")","v":""}]
[null,null,null,null,null,null,{"$f":"IF(AND('Hazardous Substances Register'!A138<>\"\",'Hazardous Substances Register'!A138<>\"Material Name\"),ROW()-1,\"\")","v":""}]
[null,null,null,null,null,null,{"$f":"IF(AND('Hazardous Substances Register'!A139<>\"\",'Hazardous Substances Register'!A139<>\"Material Name\"),ROW()-1,\"\")","v":""}]
[null,null,null,null,null,null,{"$f":"IF(AND('Hazardous Substances Register'!A140<>\"\",'Hazardous Substances Register'!A140<>\"Material Name\"),ROW()-1,\"\")","v":""}]
[null,null,null,null,null,null,{"$f":"IF(AND('Hazardous Substances Register'!A141<>\"\",'Hazardous Substances Register'!A141<>\"Material Name\"),ROW()-1,\"\")","v":""}]
[null,null,null,null,null,null,{"$f":"IF(AND('Hazardous Substances Register'!A142<>\"\",'Hazardous Substances Register'!A142<>\"Material Name\"),ROW()-1,\"\")","v":""}]
[null,null,null,null,null,null,{"$f":"IF(AND('Hazardous Substances Register'!A143<>\"\",'Hazardous Substances Register'!A143<>\"Material Name\"),ROW()-1,\"\")","v":""}]
[null,null,null,null,null,null,{"$f":"IF(AND('Hazardous Substances Register'!A144<>\"\",'Hazardous Substances Register'!A144<>\"Material Name\"),ROW()-1,\"\")","v":""}]
[null,null,null,null,null,null,{"$f":"IF(AND('Hazardous Substances Register'!A145<>\"\",'Hazardous Substances Register'!A145<>\"Material Name\"),ROW()-1,\"\")","v":""}]
[null,null,null,null,null,null,{"$f":"IF(AND('Hazardous Substances Register'!A146<>\"\",'Hazardous Substances Register'!A146<>\"Material Name\"),ROW()-1,\"\")","v":""}]
[null,null,null,null,null,null,{"$f":"IF(AND('Hazardous Substances Register'!A147<>\"\",'Hazardous Substances Register'!A147<>\"Material Name\"),ROW()-1,\"\")","v":""}]
[null,null,null,null,null,null,{"$f":"IF(AND('Hazardous Substances Register'!A148<>\"\",'Hazardous Substances Register'!A148<>\"Material Name\"),ROW()-1,\"\")","v":""}]
[null,null,null,null,null,null,{"$f":"IF(AND('Hazardous Substances Register'!A149<>\"\",'Hazardous Substances Register'!A149<>\"Material Name\"),ROW()-1,\"\")","v":""}]
[null,null,null,null,null,null,{"$f":"IF(AND('Hazardous Substances Register'!A150<>\"\",'Hazardous Substances Register'!A150<>\"Material Name\"),ROW()-1,\"\")","v":""}]
[null,null,null,null,null,null,{"$f":"IF(AND('Hazardous Substances Register'!A151<>\"\",'Hazardous Substances Register'!A151<>\"Material Name\"),ROW()-1,\"\")","v":""}]
[null,null,null,null,null,null,{"$f":"IF(AND('Hazardous Substances Register'!A152<>\"\",'Hazardous Substances Register'!A152<>\"Material Name\"),ROW()-1,\"\")","v":""}]
[null,null,null,null,null,null,{"$f":"IF(AND('Hazardous Substances Register'!A153<>\"\",'Hazardous Substances Register'!A153<>\"Material Name\"),ROW()-1,\"\")","v":""}]
[null,null,null,null,null,null,{"$f":"IF(AND('Hazardous Substances Register'!A154<>\"\",'Hazardous Substances Register'!A154<>\"Material Name\"),ROW()-1,\"\")","v":""}]
[null,null,null,null,null,null,{"$f":"IF(AND('Hazardous Substances Register'!A155<>\"\",'Hazardous Substances Register'!A155<>\"Material Name\"),ROW()-1,\"\")","v":""}]
[null,null,null,null,null,null,{"$f":"IF(AND('Hazardous Substances Register'!A156<>\"\",'Hazardous Substances Register'!A156<>\"Material Name\"),ROW()-1,\"\")","v":""}]
[null,null,null,null,null,null,{"$f":"IF(AND('Hazardous Substances Register'!A157<>\"\",'Hazardous Substances Register'!A157<>\"Material Name\"),ROW()-1,\"\")","v":""}]
[null,null,null,null,null,null,{"$f":"IF(AND('Hazardous Substances Register'!A158<>\"\",'Hazardous Substances Register'!A158<>\"Material Name\"),ROW()-1,\"\")","v":""}]
[null,null,null,null,null,null,{"$f":"IF(AND('Hazardous Substances Register'!A159<>\"\",'Hazardous Substances Register'!A159<>\"Material Name\"),ROW()-1,\"\")","v":""}]
[null,null,null,null,null,null,{"$f":"IF(AND('Hazardous Substances Register'!A160<>\"\",'Hazardous Substances Register'!A160<>\"Material Name\"),ROW()-1,\"\")","v":""}]
[null,null,null,null,null,null,{"$f":"IF(AND('Hazardous Substances Register'!A161<>\"\",'Hazardous Substances Register'!A161<>\"Material Name\"),ROW()-1,\"\")","v":""}]
[null,null,null,null,null,null,{"$f":"IF(AND('Hazardous Substances Register'!A162<>\"\",'Hazardous Substances Register'!A162<>\"Material Name\"),ROW()-1,\"\")","v":""}]
[null,null,null,null,null,null,{"$f":"IF(AND('Hazardous Substances Register'!A163<>\"\",'Hazardous Substances Register'!A163<>\"Material Name\"),ROW()-1,\"\")","v":""}]
[null,null,null,null,null,null,{"$f":"IF(AND('Hazardous Substances Register'!A164<>\"\",'Hazardous Substances Register'!A164<>\"Material Name\"),ROW()-1,\"\")","v":""}]
[null,null,null,null,null,null,{"$f":"IF(AND('Hazardous Substances Register'!A165<>\"\",'Hazardous Substances Register'!A165<>\"Material Name\"),ROW()-1,\"\")","v":""}]
[null,null,null,null,null,null,{"$f":"IF(AND('Hazardous Substances Register'!A166<>\"\",'Hazardous Substances Register'!A166<>\"Material Name\"),ROW()-1,\"\")","v":""}]
[null,null,null,null,null,null,{"$f":"IF(AND('Hazardous Substances Register'!A167<>\"\",'Hazardous Substances Register'!A167<>\"Material Name\"),ROW()-1,\"\")","v":""}]
[null,null,null,null,null,null,{"$f":"IF(AND('Hazardous Substances Register'!A168<>\"\",'Hazardous Substances Register'!A168<>\"Material Name\"),ROW()-1,\"\")","v":""}]
[null,null,null,null,null,null,{"$f":"IF(AND('Hazardous Substances Register'!A169<>\"\",'Hazardous Substances Register'!A169<>\"Material Name\"),ROW()-1,\"\")","v":""}]
[null,null,null,null,null,null,{"$f":"IF(AND('Hazardous Substances Register'!A170<>\"\",'Hazardous Substances Register'!A170<>\"Material Name\"),ROW()-1,\"\")","v":""}]
[null,null,null,null,null,null,{"$f":"IF(AND('Hazardous Substances Register'!A171<>\"\",'Hazardous Substances Register'!A171<>\"Material Name\"),ROW()-1,\"\")","v":""}]
[null,null,null,null,null,null,{"$f":"IF(AND('Hazardous Substances Register'!A172<>\"\",'Hazardous Substances Register'!A172<>\"Material Name\"),ROW()-1,\"\")","v":""}]
[null,null,null,null,null,null,{"$f":"IF(AND('Hazardous Substances Register'!A173<>\"\",'Hazardous Substances Register'!A173<>\"Material Name\"),ROW()-1,\"\")","v":""}]
[null,null,null,null,null,null,{"$f":"IF(AND('Hazardous Substances Register'!A174<>\"\",'Hazardous Substances Register'!A174<>\"Material Name\"),ROW()-1,\"\")","v":""}]
[null,null,null,null,null,null,{"$f":"IF(AND('Hazardous Substances Register'!A175<>\"\",'Hazardous Substances Register'!A175<>\"Material Name\"),ROW()-1,\"\")","v":""}]
[null,null,null,null,null,null,{"$f":"IF(AND('Hazardous Substances Register'!A176<>\"\",'Hazardous Substances Register'!A176<>\"Material Name\"),ROW()-1,\"\")","v":""}]
[null,null,null,null,null,null,{"$f":"IF(AND('Hazardous Substances Register'!A177<>\"\",'Hazardous Substances Register'!A177<>\"Material Name\"),ROW()-1,\"\")","v":""}]
[null,null,null,null,null,null,{"$f":"IF(AND('Hazardous Substances Register'!A178<>\"\",'Hazardous Substances Register'!A178<>\"Material Name\"),ROW()-1,\"\")","v":""}]
[null,null,null,null,null,null,{"$f":"IF(AND('Hazardous Substances Register'!A179<>\"\",'Hazardous Substances Register'!A179<>\"Material Name\"),ROW()-1,\"\")","v":""}]
[null,null,null,null,null,null,{"$f":"IF(AND('Hazardous Substances Register'!A180<>\"\",'Hazardous Substances Register'!A180<>\"Material Name\"),ROW()-1,\"\")","v":""}]
[null,null,null,null,null,null,{"$f":"IF(AND('Hazardous Substances Register'!A181<>\"\",'Hazardous Substances Register'!A181<>\"Material Name\"),ROW()-1,\"\")","v":""}]
[null,null,null,null,null,null,{"$f":"IF(AND('Hazardous Substances Register'!A182<>\"\",'Hazardous Substances Register'!A182<>\"Material Name\"),ROW()-1,\"\")","v":""}]
[null,null,null,null,null,null,{"$f":"IF(AND('Hazardous Substances Register'!A183<>\"\",'Hazardous Substances Register'!A183<>\"Material Name\"),ROW()-1,\"\")","v":""}]
[null,null,null,null,null,null,{"$f":"IF(AND('Hazardous Substances Register'!A184<>\"\",'Hazardous Substances Register'!A184<>\"Material Name\"),ROW()-1,\"\")","v":""}]
[null,null,null,null,null,null,{"$f":"IF(AND('Hazardous Substances Register'!A185<>\"\",'Hazardous Substances Register'!A185<>\"Material Name\"),ROW()-1,\"\")","v":""}]
[null,null,null,null,null,null,{"$f":"IF(AND('Hazardous Substances Register'!A186<>\"\",'Hazardous Substances Register'!A186<>\"Material Name\"),ROW()-1,\"\")","v":""}]
[null,null,null,null,null,null,{"$f":"IF(AND('Hazardous Substances Register'!A187<>\"\",'Hazardous Substances Register'!A187<>\"Material Name\"),ROW()-1,\"\")","v":""}]
[null,null,null,null,null,null,{"$f":"IF(AND('Hazardous Substances Register'!A188<>\"\",'Hazardous Substances Register'!A188<>\"Material Name\"),ROW()-1,\"\")","v":""}]
[null,null,null,null,null,null,{"$f":"IF(AND('Hazardous Substances Register'!A189<>\"\",'Hazardous Substances Register'!A189<>\"Material Name\"),ROW()-1,\"\")","v":""}]
[null,null,null,null,null,null,{"$f":"IF(AND('Hazardous Substances Register'!A190<>\"\",'Hazardous Substances Register'!A190<>\"Material Name\"),ROW()-1,\"\")","v":""}]
[null,null,null,null,null,null,{"$f":"IF(AND('Hazardous Substances Register'!A191<>\"\",'Hazardous Substances Register'!A191<>\"Material Name\"),ROW()-1,\"\")","v":""}]
[null,null,null,null,null,null,{"$f":"IF(AND('Hazardous Substances Register'!A192<>\"\",'Hazardous Substances Register'!A192<>\"Material Name\"),ROW()-1,\"\")","v":""}]
[null,null,null,null,null,null,{"$f":"IF(AND('Hazardous Substances Register'!A193<>\"\",'Hazardous Substances Register'!A193<>\"Material Name\"),ROW()-1,\"\")","v":""}]
[null,null,null,null,null,null,{"$f":"IF(AND('Hazardous Substances Register'!A194<>\"\",'Hazardous Substances Register'!A194<>\"Material Name\"),ROW()-1,\"\")","v":""}]
[null,null,null,null,null,null,{"$f":"IF(AND('Hazardous Substances Register'!A195<>\"\",'Hazardous Substances Register'!A195<>\"Material Name\"),ROW()-1,\"\")","v":""}]
[null,null,null,null,null,null,{"$f":"IF(AND('Hazardous Substances Register'!A196<>\"\",'Hazardous Substances Register'!A196<>\"Material Name\"),ROW()-1,\"\")","v":""}]
[null,null,null,null,null,null,{"$f":"IF(AND('Hazardous Substances Register'!A197<>\"\",'Hazardous Substances Register'!A197<>\"Material Name\"),ROW()-1,\"\")","v":""}]
[null,null,null,null,null,null,{"$f":"IF(AND('Hazardous Substances Register'!A198<>\"\",'Hazardous Substances Register'!A198<>\"Material Name\"),ROW()-1,\"\")","v":""}]
[null,null,null,null,null,null,{"$f":"IF(AND('Hazardous Substances Register'!A199<>\"\",'Hazardous Substances Register'!A199<>\"Material Name\"),ROW()-1,\"\")","v":""}]